Cogmind - Beta 15 @@@ ROGUE MODE // 2025.07.04 @ 22:40:48 Player: jumpy Result: Destroyed by as-58910 with Assembled Rifle Performance ------------- Evolutions (0) 0 Regions Visited (2) 400 Robots Destroyed (13) 65 Value Destroyed (207) 207 Prototype IDs (0) 0 Alien Tech Used (0) 0 Bonus (0) 0 TOTAL SCORE: 672 Bonus ------- None Cogmind --------- Core Integrity 0/250 Matter 269/300 Energy 98/100 System Corruption 5% Temperature Cool (87) Movement Core (200) Ox3 Location -10/Mines Parts ------- > --- POWER (1) -------- (None) > --- PROPULSION (2) --- (None) > --- UTILITY (2) ------ Medium Storage Unit > --- WEAPON (2) ------- (None) > --- INVENTORY (10) --- Light Ion Engine Wheel Wheel Improved Terrain Scanner Seismic Detector Beam Cannon Mining Laser Peak State ------------ > --- POWER ------------ Ion Engine > --- PROPULSION ------- Light Treads Light Treads > --- UTILITY ---------- Small Storage Unit Seismic Detector > --- WEAPON ----------- Medium Laser Assault Rifle > --- INVENTORY -------- Light Ion Engine Wheel Wheel Improved Terrain Scanner Seismic Detector Light Assault Rifle Grenade Launcher Mining Laser [Rating: 8] Favorites ----------- Power Ion Engine Engine Ion Engine Propulsion Light Treads Treads Light Treads Utility Seismic Detector Device Seismic Detector Storage Small Storage Unit Weapon Beam Cannon Energy Gun Medium Laser Energy Cannon Beam Cannon Ballistic Gun Assault Rifle Launcher Grenade Launcher Build | -11 -10 -10 ------- Run | Yrd Mat Min Slots Evolved . | . . . Power . | . . . Propulsion . | . . . Utility . | . . . Weapon . | . . . Parts Attached 12 | 8 3 1 Power 2 | 2 . . Engine 2 | 2 . . Core . | . . . Reactor . | . . . Propulsion 2 | 2 . . Treads 2 | 2 . . Leg . | . . . Wheel . | . . . Hover . | . . . Flight . | . . . Utility 3 | 2 1 . Device 1 | 1 . . Storage 2 | 1 1 . Processor . | . . . Hackware . | . . . Protection . | . . . Artifact . | . . . Weapon 5 | 2 2 1 Energy Gun 1 | 1 . . Energy Cannon 2 | . 2 . Ballistic Gun 1 | 1 . . Ballistic Cannon . | . . . Launcher 1 | . . 1 Special Weapon . | . . . Impact Weapon . | . . . Slashing Weapon . | . . . Piercing Weapon . | . . . Special Melee Weapon . | . . . Unidentified Prototypes . | . . . Parts Lost 7 | . . 7 Power 1 | . . 1 Propulsion 2 | . . 2 Utility 1 | . . 1 Weapon 3 | . . 3 Highest Loss Streak 7 | . . 7 To Critical Strikes . | . . . Average Backups 6 | 3 7 7 Power . | . 1 1 Propulsion 1 | 1 2 2 Utility 1 | . 2 2 Weapon 2 | 1 2 2 Tool/Special . | . . . Unused Backups 7 | . 1 6 Power . | . . . Propulsion 2 | . . 2 Utility 2 | . . 2 Weapon 3 | . 1 2 Tool/Special . | . . . Average Slot Usage (%) 98 | . 100 75 Engine 13 | . 14 4 Treads 27 | . 28 23 Device 13 | . 14 9 Storage 14 | . 14 14 Energy Gun 2 | . 3 . Energy Cannon 21 | . 21 18 Ballistic Gun 3 | . 3 . Peak Build Rating 8 | 7 8 8 Average Rating 7 | 5 7 5 On Entrance 5 | . 7 8 Naked Turns . | . . . Heaviest Build 22 | 15 22 22 Greatest Support 40 | 40 40 40 Greatest Overweight (x) 4 | . . 4 Average Overweight (x) . | . . 2 Largest Inventory Capacity 10 | 8 10 10 Average Capacity 7 | 7 8 10 Most Carried 8 | 7 8 8 Average Carried 6 | 4 7 7 Final Capacity 10 | 8 10 10 Final Carried 8 | 7 8 7 Class Distribution -------------------- 100% | Mutant Dominant Class ---------------- Mutant | -10/Materials Mutant | -10/Mines Resources | -11 -10 -10 ----------- Run | Yrd Mat Min Matter Collected 337 | 307 26 4 Remotely . | . . . Salvage Created 413 | 161 208 44 Parts 26 | 11 13 2 Haulers Intercepted . | . . . Recyclers Shooed . | . . . Parts Field Recycled . | . . . Retrieved Matter . | . . . Parts Self-Destructed . | . . . Prevented . | . . . Kills | -11 -10 -10 ------- Run | Yrd Mat Min Combat Hostiles Destroyed 16 | . 6 10 Cannons 7 | . 6 1 AOE 9 | . . 9 Classes Destroyed 7 | 3 3 1 Worker 1 | 1 . . Tunneler 4 | 3 . 1 Recycler 1 | 1 . . Watcher 1 | . 1 . Swarmer 2 | . 2 . Grunt 4 | . 4 . Assembled 10 | . . 10 Best Kill Streak 14 | 2 3 14 Combat Bots Only 13 | . 3 13 Max Kills in Single Turn 5 | 1 1 5 Gunslinging . | . . . Exploded 4 | . . 4 Melee . | . . . Uniques/NPCs Destroyed . | . . . Combat | -11 -10 -10 -------- Run | Yrd Mat Min Hostile Shots Fired 79 | . 9 70 Missed 17 | . 2 15 Hits 62 | . 7 55 Melee 13 | . . 13 Projectile 49 | . 7 42 Critical Strikes 1 | . . 1 Damage Taken 983 | . 58 925 Core 253 | . 6 247 Absorbed by Shields . | . . . Core Remaining (%) 100 | 100 . . Volleys Fired 28 | 9 11 8 Largest 2 | 2 2 1 Hottest 120 | 70 120 60 Shots Fired 48 | 18 22 8 Gun 22 | 18 4 . Cannon 22 | . 18 4 Launcher 4 | . . 4 Special . | . . . Kinetic 11 | 9 2 . Thermal 33 | 9 20 4 Explosive 4 | . . 4 Electromagnetic . | . . . Robot Hit Streak 8 | 8 4 1 Robot Miss Streak 5 | 2 5 2 Penetration Max . | . . . Secondary Targets . | . . . Shots Hit Robots 22 | 11 9 2 Core Hits 40 | 6 7 27 Critical Kills . | . . . Critical Parts Destroyed . | . . . Critical Strikes . | . . . Melee Attacks . | . . . Impact . | . . . Slashing . | . . . Piercing . | . . . Sneak Attacks . | . . . Combat Hostiles . | . . . Follow-up Attacks . | . . . Damage Inflicted 1065 | 161 191 713 Guns 196 | 161 35 . Cannons 209 | . 156 53 Explosions 660 | . . 660 Melee . | . . . Ramming . | . . . Kinetic 84 | 62 22 . Thermal 321 | 99 169 53 Explosive 660 | . . 660 Electromagnetic . | . . . Impact . | . . . Slashing . | . . . Piercing . | . . . Highest Corruption 5 | . . 5 Average Corruption 4 | . . 4 Corruption Purged . | . . . Corruption Blocked . | . . . Effects 1 | . . 1 Message Errors 1 | . . 1 Overload Shots . | . . . Overflow Damage . | . . . Projectiles . | . . . Explosions . | . . . Melee . | . . . Knockbacks . | . . . Impact . | . . . Kinetic . | . . . Secondary . | . . . Self-Inflicted Damage 78 | . . 78 Shots 2 | . . 2 Rammed . | . . . Targets Rammed . | . . . Kicked . | . . . Crushed . | . . . Highest Temperature 202 | 27 202 152 Average Temperature 53 | 10 66 82 Received Heat Transfer 246 | . 6 240 Siege Activations . | . . . Martial Activations . | . . . Shielding Activations . | . . . Robots Disrupted . | . . . Combat Hostiles . | . . . Robots Corrupted . | . . . Combat Hostiles . | . . . Parts Fried . | . . . Impact Corruptions . | . . . Robots Melted . | . . . Combat Hostiles . | . . . Parts Melted . | . . . Heat Transferred 777 | 296 370 111 Parts Sabotaged . | . . . Parts Stolen . | . . . Parts Stripped . | . . . Power Chain Reactions . | . . . Alert | -11 -10 -10 ------- Run | Yrd Mat Min Maximum Alert Level . | . . . Low Security (%) 100 | 100 100 100 Level 1 . | . . . Level 2 . | . . . Level 3 . | . . . Level 4 . | . . . Level 5 . | . . . High Security . | . . . Max Security . | . . . Peak Influence 86 | 5 86 63 Initial 30 | . . 30 Average 12 | 1 17 29 Influence Increases 256 | 25 194 37 Destroy 0b10 Robot/C 120 | . 120 . Destroy 0b10 Robot/NC 35 | 25 5 5 Destroy Leader 32 | . 32 . Successful Hack 5 | . 5 . Destroy Structure 34 | . 2 32 Lose Combat Pursuer 30 | . 30 . Influence Decreases 256 | 25 116 115 Entered New Map 48 | . . 48 Time Decay 151 | 25 116 10 Lost Part 57 | . . 57 Squads Dispatched 2 | . 2 . Investigation . | . . . Extermination . | . . . Reinforcement 2 | . 2 . Assault . | . . . Garrison . | . . . Intercept . | . . . Searches Triggered . | . . . Construction Impeded . | . . . Haulers Reinforced . | . . . Active Scanning Responses . | . . . Cargo Convoy Interrupts . | . . . Stealth | -11 -10 -10 --------- Run | Yrd Mat Min Distress Signals 2 | . 2 . Communications Jammed . | . . . Distress Signals . | . . . Times Spotted 30 | . 10 20 Peak Tracking Total 20 | . 5 20 Tactical Retreats 3 | . 2 1 Traps | -11 -10 -10 ------- Run | Yrd Mat Min Traps Triggered . | . . . Indirectly . | . . . Trap Hack Attempts . | . . . Triggered . | . . . Disarmed . | . . . Reprogrammed . | . . . Reused . | . . . Traps Extracted . | . . . Installed . | . . . Triggered . | . . . Machines | -11 -10 -10 ---------- Run | Yrd Mat Min Machines Disabled . | . . . Max in Single Turn . | . . . Machines Repaired . | . . . Machines Dismantled . | . . . Machines Sabotaged . | . . . Overloaded Fab Kills . | . . . Hacking | -11 -10 -10 --------- Run | Yrd Mat Min Machines Accessed 1 | . 1 . Terminals 1 | . 1 . Fabricators . | . . . Repair Stations . | . . . Recycling Units . | . . . Scanalyzers . | . . . Garrison Access . | . . . Total Hacks 5 | . 5 . Successful 2 | . 2 . Failed 3 | . 3 . Catastrophic . | . . . Database Lockouts . | . . . Manual 5 | . 5 . Terminals 5 | . 5 . Fabricators . | . . . Repair Stations . | . . . Recycling Units . | . . . Scanalyzers . | . . . Garrison Access . | . . . Terminal Hacks . | . . . Fabricator Hacks . | . . . Repair Station Hacks . | . . . Recycling Unit Hacks . | . . . Scanalyzer . | . . . Garrison Access Hacks . | . . . Unauthorized Hacks 2 | . 2 . Terminals 2 | . 2 . Botnet 1 | . 1 . Skim 1 | . 1 . Fabricators . | . . . Repair Stations . | . . . Recycling Units . | . . . Scanalyzers . | . . . Garrison Access . | . . . Data Cores Recovered . | . . . Used . | . . . Hacking Detections 1 | . 1 . Full Trace Events . | . . . Feedback Events . | . . . Feedback Blocked . | . . . Robot Schematics Acquired . | . . . Robots Built . | . . . Authchips . | . . . Time . | . . . Total Robot Build Rating . | . . . Part Schematics Acquired . | . . . Parts Built . | . . . Authchips . | . . . Time . | . . . Total Part Build Rating . | . . . Parts Repaired . | . . . Time . | . . . Parts Recycled . | . . . Recycled Matter . | . . . Retrieved Matter . | . . . Retrieved Components . | . . . Parts Scanalyzed . | . . . Part Schematics Acquired . | . . . Parts Damaged . | . . . Bothacking | -11 -10 -10 ------------ Run | Yrd Mat Min Used RIF Installer . | . . . Robots Hacked . | . . . Non-combat . | . . . Combat . | . . . Robot Hacks Applied . | . . . Relay Couplers Released . | . . . Fabnet Peak Effective % . | . . . Robots Rewired . | . . . Allies Hacked . | . . . Hacks Repelled . | . . . Allies | -11 -10 -10 -------- Run | Yrd Mat Min Total Allies . | . . . Largest Group . | . . . Highest-Rated Group . | . . . Highest-Rated Ally . | . . . Total Orders . | . . . Ally Attacks . | . . . Total Damage . | . . . Kills . | . . . Allies Corrupted . | . . . Allies Melted . | . . . Intel | -11 -10 -10 ------- Run | Yrd Mat Min Active Infowar (turns) 517 | 97 406 14 Seismic 517 | 97 406 14 Robot Analysis Total . | . . . Derelict Logs Recovered . | . . . Drone Launches . | . . . Drone Recoveries . | . . . Exploration | -11 -10 -10 ------------- Run | Yrd Mat Min Turns Passed 615 | 182 406 27 Spaces Moved 297 | 88 204 5 Core 5 | 2 . 3 Treads 292 | 86 204 2 Legs . | . . . Wheels . | . . . Hover . | . . . Flight . | . . . Fastest Speed 50 | 50 160 160 Average Speed 159 | 157 160 194 Slowest Speed 250 | 160 160 250 Overloaded Moves . | . . . Propulsion Burnouts . | . . . Robots Hopped . | . . . Potential Cave-ins . | . . . Cave-ins Triggered . | . . . Exploration Rate (%) 16 | 5 38 5 Regions Visited 2 Branch Regions 1 Pre-discovered Areas . | . . . Known Exits Taken . | . . . Unknown Exits Taken 2 | 1 1 . Scrap Searched . | . . . Spaces Dug . | . . . Terrain Destroyed 35 | . . 35 Melee . | . . . Projectile . | . . . AOE 35 | . . 35 Terrain Rammed . | . . . Walls Destroyed . | . . . Machines Disabled . | . . . Actions | -11 -10 -10 --------- Run | Yrd Mat Min Total 387 | 110 262 15 Wait 41 | . 41 . Move 295 | 87 203 5 Hop . | . . . Pick Up 8 | 6 2 . Fast Attach 7 | 7 . . Attach 1 | . . 1 Detach . | . . . Swap 5 | 1 3 1 Drop 2 | . 2 . Fire 28 | 9 11 8 Melee . | . . . Ram . | . . . Kick . | . . . Crush . | . . . Escape Stasis . | . . . Rewire . | . . . Trap . | . . . Miscellaneous . | . . . Route ------- -11/Scrapyard -10/Materials -10/Mines History --------- Turn | Location | Event 10 | -11/Scrapyard | Discovered new exit (range 15) 183 | -11/Scrapyard | Entered Materials 315 | -10/Materials | Build established: Mutant 448 | -10/Materials | Discovered new exit (range 16) 589 | -10/Materials | Entered Mines 590 | -10/Mines | Assembled infested the area 604 | -10/Mines | Core integrity fell below 50% 614 | -10/Mines | Core integrity fell below 20% 616 | -10/Mines | Destroyed by as-58910 with Assembled Rifle Last Messages --------------- 00595_ as-07936 destroyed. 00595_ T-07 Excavator destroyed. 00595_ as-83872 destroyed. 00595_ as-40102 destroyed. 00598_ Ion Engine destroyed. 00599_ as-57816 destroyed. 00599_ as-17321 destroyed. 00600_ Grenade Launcher destroyed. 00602_ as-79362 destroyed. 00603_ The unstable cave ceiling collapses. 00603_ Seismic Detector destroyed. 00603_ System corrupted by crushing effect (+3). 00606_ Beam Cannon destroyed. 00606_ System corrupted by crushing effect (+2). 00607_ Lgt. Treads destroyed. 00610_ as-96327 destroyed. 00611_ Acquired 4 matter. 00612_ &N>8GT|Q/ S%54OS7IXSL:PS 00612_ Beam Cannon destroyed. 00615_ Knocked back. Map ----- +----------------------------------------------------+ | | | | | | | | | | | | | | | | | | | ?????????????????????????????????????? | | ?????????????????????????????????????? | | ?????????????????????????????????????? | | ?????????????????????????????????????? | | ?????????????????????????????????????? | | ?????????????????????????????????????? | | ?????????????????????????????????????? | | ?????????????????????????????????????? | | ?????????????????????????????????????? | | ?????????#####???????????????????????? | | ???????### # ##??????????????????????? | | ???????# ##?????????????????????? | | ???????# = #?????????????????????? | | ???????# = ##????????????????????? | | ???????## aa #????????????????????? | | ????????# a ####??????????????????? | | ????????# a@ #??????????????????? | | ????????# % #??????????????????? | | ????????## a ## ???????????????? | | ?????????# a #? ????????????? | | ?????????## a #?? ##???????????? | | ?????????# %